[Event "LASK Schackstudion IM Tournament"]
[Site "Lund, Sweden"]
[Date "2022.08.16"]
[Round "3.3"]
[White "Larkin, Vadyslav"]
[Black "Kristensen, Kaare Hove"]
[Result "1-0"]
[TimeControl "90 minutes + 30 sec increment starting from move 1."]
[WhiteTitle "IM"]
[BlackTitle "IM"]
[WhiteFideId "14152894"]
[BlackFideId "1400940"]
[WhiteElo "2447"]
[BlackElo "2274"]

1. e4 {[%clk 01:25:33]} {[%emt 00:05:26]} c5 {[%clk 01:30:42]} {[%emt
00:00:18]} 2. Ne2 {[%clk 01:25:47]} {[%emt 00:00:17]} Nc6 {[%clk 01:27:55]}
{[%emt 00:03:17]} 3. Nbc3 {[%clk 01:26:05]} {[%emt 00:00:12]} d6 {[%clk
01:24:09]} {[%emt 00:04:16]} 4. d4 {[%clk 01:26:08]} {[%emt 00:00:26]} cxd4
{[%clk 01:24:29]} {[%emt 00:00:11]} 5. Nxd4 {[%clk 01:26:32]} {[%emt 00:00:07]}
Nf6 {[%clk 01:19:26]} {[%emt 00:05:32]} 6. Nb3 {[%clk 01:26:05]} {[%emt
00:00:58]} g6 {[%clk 01:18:33]} {[%emt 00:01:23]} 7. g3 {[%clk 01:26:19]}
{[%emt 00:00:15]} Bg7 {[%clk 01:18:54]} {[%emt 00:00:09]} 8. Bg2 {[%clk
01:26:45]} {[%emt 00:00:04]} Bg4 {[%clk 01:16:47]} {[%emt 00:02:37]} 9. f3
{[%clk 01:22:41]} {[%emt 00:04:35]} Bd7 {[%clk 01:07:25]} {[%emt 00:09:52]} 10.
O-O {[%clk 01:22:53]} {[%emt 00:00:18]} O-O {[%clk 01:05:52]} {[%emt 00:02:03]}
11. Kh1 {[%clk 01:22:52]} {[%emt 00:00:32]} Rc8 {[%clk 01:05:11]} {[%emt
00:01:11]} 12. Nd5 {[%clk 01:13:34]} {[%emt 00:09:48]} Nxd5 {[%clk 01:00:54]}
{[%emt 00:04:46]} 13. exd5 {[%clk 01:14:01]} {[%emt 00:00:04]} Ne5 {[%clk
00:59:54]} {[%emt 00:01:29]} 14. a4 {[%clk 01:13:50]} {[%emt 00:00:41]} Qc7
{[%clk 00:55:29]} {[%emt 00:04:55]} 15. Nd4 {[%clk 01:04:19]} {[%emt 00:10:02]}
Rfe8 {[%clk 00:50:37]} {[%emt 00:05:22]} 16. Re1 {[%clk 01:03:43]} {[%emt
00:01:07]} Qc4 {[%clk 00:42:22]} {[%emt 00:08:43]} 17. Be3 {[%clk 00:58:33]}
{[%emt 00:05:42]} Qc7 {[%clk 00:29:42]} {[%emt 00:13:10]} 18. Bg1 {[%clk
00:56:26]} {[%emt 00:02:37]} a6 {[%clk 00:25:55]} {[%emt 00:04:18]} 19. Ra2
{[%clk 00:47:23]} {[%emt 00:09:32]} e6 {[%clk 00:22:17]} {[%emt 00:04:08]} 20.
f4 {[%clk 00:43:37]} {[%emt 00:04:16]} Nc4 {[%clk 00:15:26]} {[%emt 00:07:21]}
21. b3 {[%clk 00:41:38]} {[%emt 00:02:29]} e5 {[%clk 00:13:18]} {[%emt
00:02:38]} 22. Ne2 {[%clk 00:40:41]} {[%emt 00:01:28]} exf4 {[%clk 00:10:53]}
{[%emt 00:02:55]} 23. Nxf4 {[%clk 00:37:37]} {[%emt 00:03:34]} Rxe1 {[%clk
00:08:08]} {[%emt 00:03:14]} 24. Qxe1 {[%clk 00:38:01]} {[%emt 00:00:06]} Re8
{[%clk 00:08:18]} {[%emt 00:00:19]} 25. Qc1 {[%clk 00:38:23]} {[%emt 00:00:08]}
Ne5 {[%clk 00:08:24]} {[%emt 00:00:25]} 26. c4 {[%clk 00:36:33]} {[%emt
00:02:20]} a5 {[%clk 00:03:33]} {[%emt 00:05:22]} 27. Re2 {[%clk 00:35:08]}
{[%emt 00:01:54]} Bg4 {[%clk 00:03:24]} {[%emt 00:00:39]} 28. Re1 {[%clk
00:35:17]} {[%emt 00:00:21]} Rc8 {[%clk 00:02:31]} {[%emt 00:01:24]} 29. Qe3
{[%clk 00:34:51]} {[%emt 00:00:55]} Bf5 {[%clk 00:01:53]} {[%emt 00:01:09]} 30.
h3 {[%clk 00:33:04]} {[%emt 00:02:16]} h5 {[%clk 00:02:08]} {[%emt 00:00:15]}
31. Rf1 {[%clk 00:32:33]} {[%emt 00:01:00]} Qd7 {[%clk 00:01:14]} {[%emt
00:01:24]} 32. Kh2 {[%clk 00:32:37]} {[%emt 00:00:26]} Bh6 {[%clk 00:01:24]}
{[%emt 00:00:21]} 33. Qc3 {[%clk 00:32:34]} {[%emt 00:00:32]} Ra8 {[%clk
00:00:34]} {[%emt 00:01:21]} 34. c5 {[%clk 00:32:16]} {[%emt 00:00:47]} Bxf4
{[%clk 00:00:40]} {[%emt 00:00:24]} 35. gxf4 {[%clk 00:29:19]} {[%emt
00:03:27]} Nd3 {[%clk 00:01:03]} {[%emt 00:00:08]} 36. c6 {[%clk 00:29:34]}
{[%emt 00:00:14]} Qc7 {[%clk 00:01:24]} {[%emt 00:00:10]} 37. Qf6 {[%clk
00:27:09]} {[%emt 00:02:55]} Kh7 {[%clk 00:01:49]} {[%emt 00:00:05]} 38. Rf3
{[%clk 00:26:14]} {[%emt 00:01:24]} bxc6 {[%clk 00:01:27]} {[%emt 00:00:52]} 39.
Re3 {[%clk 00:26:08]} {[%emt 00:00:37]} 1-0

[Event "LASK Schackstudion IM Tournament"]
[Site "Lund, Sweden"]
[Date "2022.08.16"]
[Round "3.4"]
[White "Magnusson, Jorgen"]
[Black "Nord, Alexander"]
[Result "1/2-1/2"]
[TimeControl "90 minutes + 30 sec increment starting from move 1."]
[WhiteTitle "FM"]
[BlackTitle "CM"]
[WhiteFideId "1700880"]
[BlackFideId "1738135"]
[WhiteElo "2292"]
[BlackElo "2227"]

1. d4 {[%clk 01:30:30]} Nf6 2. Nf3 {[%clk 01:30:30]} e6 3. Bf4 {[%clk
01:30:30]} d5 4. c3 {[%clk 01:30:30]} c5 5. e3 {[%clk 01:30:30]} Nc6 6. Nbd2
{[%clk 01:30:30]} cxd4 7. exd4 {[%clk 01:30:30]} Nh5 8. Be3 {[%clk 01:30:30]}
Bd6 9. Ne5 {[%clk 01:30:30]} g6 10. Nd3 {[%clk 01:30:30]} Qc7 11. Be2 {[%clk
01:30:30]} Ng7 12. Nf3 {[%clk 01:30:30]} f6 13. O-O {[%clk 01:30:30]} Nf5 14.
Rc1 {[%clk 01:30:30]} O-O 15. c4 {[%clk 01:30:30]} dxc4 16. Rxc4 {[%clk
01:30:30]} Qd8 17. Bf4 {[%clk 01:30:30]} Nce7 18. Bxd6 {[%clk 01:30:30]} Qxd6
19. Qd2 {[%clk 01:30:30]} Bd7 20. Qb4 {[%clk 01:30:30]} Qxb4 21. Nxb4 {[%clk
01:30:30]} Rac8 22. Rfc1 {[%clk 01:30:30]} a5 1/2-1/2

[Event "LASK Schackstudion IM Tournament"]
[Site "Lund, Sweden"]
[Date "2022.08.16"]
[Round "3.5"]
[White "Jogstad, Martin"]
[Black "Rozentalis, Eduardas"]
[Result "0-1"]
[TimeControl "90 minutes + 30 sec increment starting from move 1."]
[WhiteTitle "FM"]
[BlackTitle "GM"]
[WhiteFideId "1715364"]
[BlackFideId "12800023"]
[WhiteElo "2354"]
[BlackElo "2493"]

1. d4 {[%clk 01:30:52]} {[%emt 00:00:06]} Nf6 {[%clk 01:30:36]} {[%emt
00:00:25]} 2. c4 {[%clk 01:31:16]} {[%emt 00:00:07]} e6 {[%clk 01:31:04]}
{[%emt 00:00:03]} 3. Nc3 {[%clk 01:31:06]} {[%emt 00:00:39]} Bb4 {[%clk
01:31:27]} {[%emt 00:00:08]} 4. a3 {[%clk 01:31:22]} {[%emt 00:00:14]} Bxc3+
{[%clk 01:31:48]} {[%emt 00:00:08]} 5. bxc3 {[%clk 01:31:46]} {[%emt 00:00:06]}
d6 {[%clk 01:30:05]} {[%emt 00:02:13]} 6. f3 {[%clk 01:31:34]} {[%emt
00:00:42]} Nh5 {[%clk 01:27:58]} {[%emt 00:02:37]} 7. Nh3 {[%clk 01:30:46]}
{[%emt 00:01:17]} e5 {[%clk 01:25:13]} {[%emt 00:03:16]} 8. Nf2 {[%clk
01:30:22]} {[%emt 00:00:53]} f5 {[%clk 01:23:56]} {[%emt 00:01:47]} 9. e4
{[%clk 01:21:17]} {[%emt 00:09:35]} f4 {[%clk 01:21:16]} {[%emt 00:03:11]} 10.
c5 {[%clk 01:21:12]} {[%emt 00:00:36]} Qe7 {[%clk 01:05:09]} {[%emt 00:16:36]}
11. cxd6 {[%clk 01:20:57]} {[%emt 00:00:45]} cxd6 {[%clk 01:05:09]} {[%emt
00:00:31]} 12. a4 {[%clk 01:20:27]} {[%emt 00:01:00]} Be6 {[%clk 00:57:09]}
{[%emt 00:08:29]} 13. Ba3 {[%clk 01:17:44]} {[%emt 00:03:13]} Qc7 {[%clk
00:57:25]} {[%emt 00:00:15]} 14. Bb5+ {[%clk 01:17:19]} {[%emt 00:00:54]} Nd7
{[%clk 00:55:07]} {[%emt 00:02:48]} 15. d5 {[%clk 01:15:22]} {[%emt 00:02:28]}
Bf7 {[%clk 00:54:59]} {[%emt 00:00:37]} 16. c4 {[%clk 01:13:35]} {[%emt
00:02:19]} b6 {[%clk 00:50:45]} {[%emt 00:04:42]} 17. a5 {[%clk 01:12:01]}
{[%emt 00:02:04]} O-O {[%clk 00:48:30]} {[%emt 00:02:45]} 18. Bxd7 {[%clk
01:07:21]} {[%emt 00:05:09]} Qxd7 {[%clk 00:48:54]} {[%emt 00:00:07]} 19. axb6
{[%clk 01:06:43]} {[%emt 00:01:08]} axb6 {[%clk 00:49:16]} {[%emt 00:00:08]} 20.
O-O {[%clk 01:04:31]} {[%emt 00:02:40]} Nf6 {[%clk 00:44:55]} {[%emt 00:04:52]}
21. Qb3 {[%clk 01:03:50]} {[%emt 00:01:11]} Qc7 {[%clk 00:43:27]} {[%emt
00:01:58]} 22. Qb4 {[%clk 01:01:06]} {[%emt 00:03:16]} Qc5 {[%clk 00:41:10]}
{[%emt 00:02:47]} 23. Rfb1 {[%clk 00:51:06]} {[%emt 00:10:29]} Rfc8 {[%clk
00:37:51]} {[%emt 00:03:49]} 24. Qb2 {[%clk 00:30:23]} {[%emt 00:21:13]} Qc7
{[%clk 00:37:07]} {[%emt 00:01:14]} 25. Qb4 {[%clk 00:29:54]} {[%emt 00:00:59]}
Qc5 {[%clk 00:37:23]} {[%emt 00:00:14]} 26. Qb2 {[%clk 00:30:13]} {[%emt
00:00:11]} Qc7 {[%clk 00:37:47]} {[%emt 00:00:06]} 27. Bb4 {[%clk 00:29:21]}
{[%emt 00:01:23]} Nd7 {[%clk 00:36:30]} {[%emt 00:01:47]} 28. Rxa8 {[%clk
00:29:00]} {[%emt 00:00:51]} Rxa8 {[%clk 00:36:55]} {[%emt 00:00:05]} 29. Ra1
{[%clk 00:29:09]} {[%emt 00:00:21]} Rxa1+ {[%clk 00:33:03]} {[%emt 00:04:23]}
30. Qxa1 {[%clk 00:29:36]} {[%emt 00:00:02]} Be8 {[%clk 00:28:12]} {[%emt
00:05:20]} 31. Qa8 {[%clk 00:12:39]} {[%emt 00:17:28]} Kf7 {[%clk 00:28:02]}
{[%emt 00:00:40]} 32. Qc6 {[%clk 00:08:18]} {[%emt 00:04:51]} Qxc6 {[%clk
00:27:12]} {[%emt 00:01:20]} 33. dxc6 {[%clk 00:08:46]} {[%emt 00:00:02]} Nc5
{[%clk 00:27:36]} {[%emt 00:00:06]} 34. c7 {[%clk 00:09:00]} {[%emt 00:00:17]}
Bd7 {[%emt 00:00:11]} 35. Nd1 {[%clk 00:08:28]} {[%emt 00:01:01]} Ke6 {[%clk
00:19:13]} {[%emt 00:09:11]} 36. Nc3 {[%clk 00:07:58]} {[%emt 00:01:01]} Na6
{[%clk 00:19:27]} {[%emt 00:00:16]} 37. Nd5 {[%clk 00:07:36]} {[%emt 00:00:53]}
Nxb4 {[%clk 00:19:05]} {[%emt 00:00:52]} 38. Nxb4 {[%clk 00:07:33]} {[%emt
00:00:33]} Bc8 {[%clk 00:19:28]} {[%emt 00:00:07]} 39. Nd5 {[%clk 00:06:47]}
{[%emt 00:01:16]} Kd7 {[%clk 00:19:54]} {[%emt 00:00:04]} 40. Nxb6+ {[%clk
00:03:13]} {[%emt 00:04:04]} Kxc7 {[%clk 00:20:03]} {[%emt 00:00:20]} 41. Nd5+
{[%clk 00:01:13]} {[%emt 00:02:30]} Kd8 {[%clk 00:18:32]} {[%emt 00:02:01]} 42.
Nb4 {[%clk 00:00:41]} {[%emt 00:01:03]} Be6 {[%clk 00:14:45]} {[%emt 00:04:17]}
43. c5 {[%clk 00:00:49]} {[%emt 00:00:22]} dxc5 {[%clk 00:14:51]} {[%emt
00:00:24]} 44. Nd3 {[%clk 00:00:37]} {[%emt 00:00:42]} c4 {[%clk 00:15:13]}
{[%emt 00:00:07]} 45. Nc5 {[%clk 00:00:35]} {[%emt 00:00:32]} Bd7 {[%clk
00:12:53]} {[%emt 00:02:49]} 46. Na6 {[%clk 00:00:37]} {[%emt 00:00:28]} Ke7
{[%clk 00:10:20]} {[%emt 00:03:04]} 47. Kf2 {[%clk 00:00:56]} {[%emt 00:00:11]}
Kd6 {[%clk 00:10:38]} {[%emt 00:00:11]} 48. Ke1 {[%clk 00:00:51]} {[%emt
00:00:35]} c3 {[%clk 00:10:20]} {[%emt 00:00:49]} 49. g3 {[%clk 00:00:32]}
{[%emt 00:00:49]} fxg3 {[%clk 00:09:39]} {[%emt 00:01:11]} 50. hxg3 {[%clk
00:01:01]} {[%emt 00:00:01]} h5 {[%clk 00:09:56]} {[%emt 00:00:13]} 51. Nb4
{[%clk 00:01:00]} {[%emt 00:00:32]} Kc5 {[%clk 00:09:39]} {[%emt 00:00:47]} 52.
Nd5 {[%clk 00:01:14]} {[%emt 00:00:17]} Kd4 {[%clk 00:09:57]} {[%emt 00:00:11]}
53. Kd1 {[%clk 00:01:26]} {[%emt 00:00:18]} g5 {[%clk 00:09:41]} {[%emt
00:00:47]} 54. Nf6 {[%clk 00:01:28]} {[%emt 00:00:28]} h4 {[%clk 00:09:19]}
{[%emt 00:00:52]} 55. gxh4 {[%clk 00:01:15]} {[%emt 00:00:44]} gxh4 {[%clk
00:09:38]} {[%emt 00:00:11]} 56. Kc2 {[%clk 00:00:34]} {[%emt 00:01:11]} h3
{[%clk 00:09:25]} {[%emt 00:00:43]} 57. Nh5 {[%clk 00:00:56]} {[%emt 00:00:07]}
h2 {[%clk 00:09:29]} {[%emt 00:00:26]} 58. Ng3 {[%clk 00:01:22]} {[%emt
00:00:04]} Bh3 {[%clk 00:09:44]} {[%emt 00:00:15]} 0-1

[Event "LASK Schackstudion IM Tournament"]
[Site "Lund, Sweden"]
[Date "2022.08.17"]
[Round "4.1"]
[White "Jacobsen, Mikkel Manosri"]
[Black "Jepson, Christian"]
[Result "0-1"]
[TimeControl "90 minutes + 30 sec increment starting from move 1."]
[WhiteTitle "FM"]
[BlackTitle "IM"]
[WhiteFideId "1444514"]
[BlackFideId "1701185"]
[WhiteElo "2320"]
[BlackElo "2395"]

1. d4 {[%clk 01:30:57]} {[%emt 00:00:02]} Nf6 {[%clk 01:24:20]} {[%emt
00:06:39]} 2. Nf3 {[%clk 01:31:17]} {[%emt 00:00:10]} g6 {[%clk 01:24:38]}
{[%emt 00:00:13]} 3. c4 {[%clk 01:31:39]} {[%emt 00:00:09]} Bg7 {[%clk
01:24:59]} {[%emt 00:00:08]} 4. Nc3 {[%clk 01:31:32]} {[%emt 00:00:37]} O-O
{[%clk 01:23:22]} {[%emt 00:02:07]} 5. Bg5 {[%clk 01:31:23]} {[%emt 00:00:39]}
d6 {[%clk 01:22:35]} {[%emt 00:01:17]} 6. e3 {[%clk 01:31:48]} {[%emt
00:00:05]} Bf5 {[%clk 01:22:55]} {[%emt 00:00:10]} 7. Bd3 {[%clk 01:29:15]}
{[%emt 00:03:03]} Bxd3 {[%clk 01:23:13]} {[%emt 00:00:13]} 8. Qxd3 {[%clk
01:29:42]} {[%emt 00:00:03]} Nbd7 {[%clk 01:20:16]} {[%emt 00:03:27]} 9. O-O
{[%clk 01:29:51]} {[%emt 00:00:22]} h6 {[%clk 01:19:02]} {[%emt 00:01:43]} 10.
Bxf6 {[%clk 01:26:57]} {[%emt 00:03:23]} Nxf6 {[%clk 01:17:13]} {[%emt
00:02:19]} 11. b4 {[%clk 01:25:22]} {[%emt 00:02:05]} e5 {[%clk 01:11:37]}
{[%emt 00:06:07]} 12. dxe5 {[%clk 01:21:39]} {[%emt 00:04:14]} dxe5 {[%clk
01:11:59]} {[%emt 00:00:07]} 13. Qxd8 {[%clk 01:22:04]} {[%emt 00:00:05]} Rfxd8
{[%clk 01:12:08]} {[%emt 00:00:21]} 14. e4 {[%clk 01:22:07]} {[%emt 00:00:27]}
Rd3 {[%clk 00:45:52]} {[%emt 00:26:47]} 15. Rfc1 {[%clk 01:15:05]} {[%emt
00:07:31]} Rad8 {[%clk 00:34:36]} {[%emt 00:11:46]} 16. Kf1 {[%clk 01:13:24]}
{[%emt 00:02:10]} Nh5 {[%clk 00:33:55]} {[%emt 00:01:12]} 17. Nd5 {[%clk
01:10:42]} {[%emt 00:03:12]} c6 {[%clk 00:33:49]} {[%emt 00:00:36]} 18. Ne3
{[%clk 01:07:18]} {[%emt 00:03:54]} Nf6 {[%clk 00:29:42]} {[%emt 00:04:38]} 19.
Nxe5 {[%clk 01:03:06]} {[%emt 00:04:41]} Rxe3 {[%clk 00:22:04]} {[%emt
00:08:08]} 20. fxe3 {[%clk 01:03:34]} {[%emt 00:00:02]} Nxe4 {[%clk 00:22:28]}
{[%emt 00:00:06]} 21. Rd1 {[%clk 00:57:44]} {[%emt 00:06:19]} Rd2 {[%clk
00:21:51]} {[%emt 00:01:06]} 22. Rxd2 {[%clk 00:54:55]} {[%emt 00:03:19]} Nxd2+
{[%clk 00:22:16]} {[%emt 00:00:05]} 23. Ke2 {[%clk 00:55:19]} {[%emt 00:00:06]}
Bxe5 {[%clk 00:19:48]} {[%emt 00:02:58]} 24. Rc1 {[%clk 00:55:33]} {[%emt
00:00:15]} Ne4 {[%clk 00:20:08]} {[%emt 00:00:10]} 25. Kd3 {[%clk 00:55:56]}
{[%emt 00:00:07]} Nf2+ {[%clk 00:20:07]} {[%emt 00:00:31]} 26. Ke2 {[%clk
00:56:13]} {[%emt 00:00:13]} Ne4 {[%clk 00:20:24]} {[%emt 00:00:14]} 27. Kd3
{[%clk 00:56:37]} {[%emt 00:00:05]} f5 {[%clk 00:20:14]} {[%emt 00:00:40]} 28.
h3 {[%clk 00:54:18]} {[%emt 00:02:48]} h5 {[%clk 00:17:49]} {[%emt 00:02:55]}
29. c5 {[%clk 00:51:02]} {[%emt 00:03:47]} a6 {[%clk 00:17:59]} {[%emt
00:00:20]} 30. a4 {[%clk 00:50:35]} {[%emt 00:00:56]} Kf7 {[%clk 00:18:08]}
{[%emt 00:00:21]} 31. Rc2 {[%clk 00:47:30]} {[%emt 00:03:35]} Ke6 {[%clk
00:16:51]} {[%emt 00:01:48]} 32. Kc4 {[%clk 00:47:53]} {[%emt 00:00:07]} Nc3
{[%clk 00:14:52]} {[%emt 00:02:29]} 33. Rxc3 {[%clk 00:41:58]} {[%emt
00:06:25]} Bxc3 {[%clk 00:15:13]} {[%emt 00:00:08]} 34. Kxc3 {[%clk 00:42:25]}
{[%emt 00:00:04]} Kd5 {[%clk 00:15:36]} {[%emt 00:00:07]} 35. a5 {[%clk
00:42:50]} {[%emt 00:00:05]} Ke4 {[%clk 00:14:51]} {[%emt 00:01:15]} 36. Kd2
{[%clk 00:43:12]} {[%emt 00:00:08]} h4 {[%clk 00:06:53]} {[%emt 00:08:27]} 37.
Ke2 {[%clk 00:43:16]} {[%emt 00:00:26]} Kd5 {[%clk 00:00:52]} {[%emt 00:06:32]}
38. Kd3 {[%clk 00:43:45]} {[%emt 00:00:01]} Ke5 {[%clk 00:01:15]} {[%emt
00:00:07]} 39. Kd2 {[%clk 00:42:23]} {[%emt 00:01:52]} Ke4 {[%clk 00:01:39]}
{[%emt 00:00:06]} 40. Ke2 {[%clk 00:42:49]} {[%emt 00:00:04]} f4 {[%clk
00:00:49]} {[%emt 00:01:20]} 41. exf4 {[%clk 00:43:11]} {[%emt 00:00:08]} Kxf4
{[%clk 00:01:15]} {[%emt 00:00:03]} 42. Kf2 {[%clk 00:43:23]} {[%emt 00:00:18]}
Ke4 {[%clk 00:01:34]} {[%emt 00:00:11]} 43. Ke2 {[%clk 00:43:48]} {[%emt
00:00:05]} Kf4 {[%clk 00:00:57]} {[%emt 00:01:07]} 44. Kf2 {[%clk 00:44:16]}
{[%emt 00:00:01]} Ke4 {[%clk 00:01:21]} {[%emt 00:00:07]} 45. Ke2 {[%clk
00:44:43]} {[%emt 00:00:03]} Kd4 {[%clk 00:00:57]} {[%emt 00:00:55]} 46. Kf3
{[%clk 00:44:59]} {[%emt 00:00:14]} Kc4 {[%clk 00:01:22]} {[%emt 00:00:05]} 47.
Kg4 {[%clk 00:45:21]} {[%emt 00:00:07]} Kxb4 {[%clk 00:01:46]} {[%emt
00:00:06]} 48. Kxh4 {[%clk 00:45:37]} {[%emt 00:00:14]} Kxa5 {[%clk 00:01:13]}
{[%emt 00:01:04]} 49. Kg5 {[%clk 00:41:08]} {[%emt 00:04:58]} Kb4 {[%clk
00:01:22]} {[%emt 00:00:21]} 50. Kxg6 {[%clk 00:41:29]} {[%emt 00:00:09]} a5
{[%clk 00:01:42]} {[%emt 00:00:10]} 51. g4 {[%clk 00:41:18]} {[%emt 00:00:40]}
a4 {[%clk 00:02:07]} {[%emt 00:00:06]} 52. g5 {[%clk 00:41:41]} {[%emt
00:00:07]} a3 {[%clk 00:02:31]} {[%emt 00:00:06]} 53. h4 {[%clk 00:41:06]}
{[%emt 00:01:04]} a2 {[%clk 00:02:56]} {[%emt 00:00:05]} 54. h5 {[%clk
00:41:31]} {[%emt 00:00:05]} a1=Q {[%clk 00:03:17]} {[%emt 00:00:10]} 55. Kh7
{[%clk 00:41:02]} {[%emt 00:00:59]} Qe5 {[%clk 00:03:21]} {[%emt 00:00:25]} 56.
Kh6 {[%clk 00:41:11]} {[%emt 00:00:21]} Qh8+ {[%clk 00:03:34]} {[%emt
00:00:17]} 57. Kg6 {[%clk 00:41:33]} {[%emt 00:00:08]} Kxc5 {[%clk 00:03:58]}
{[%emt 00:00:07]} 0-1

[Event "LASK Schackstudion IM Tournament"]
[Site "Lund, Sweden"]
[Date "2022.08.17"]
[Round "4.2"]
[White "Kristensen, Kaare Hove"]
[Black "Kucuksari, Kaan"]
[Result "0-1"]
[TimeControl "90 minutes + 30 sec increment starting from move 1."]
[WhiteTitle "IM"]
[BlackTitle "FM"]
[WhiteFideId "1400940"]
[BlackFideId "6380166"]
[WhiteElo "2274"]
[BlackElo "2398"]

1. c4 {[%clk 01:30:45]} {[%emt 00:00:13]} g6 {[%clk 01:30:49]} {[%emt
00:00:13]} 2. d4 {[%clk 01:30:22]} {[%emt 00:00:53]} Nf6 {[%clk 01:31:08]}
{[%emt 00:00:11]} 3. Nc3 {[%clk 01:30:15]} {[%emt 00:00:36]} Bg7 {[%clk
01:31:33]} {[%emt 00:00:06]} 4. e4 {[%clk 01:30:14]} {[%emt 00:00:31]} d6
{[%clk 01:31:57]} {[%emt 00:00:06]} 5. Nf3 {[%clk 01:29:08]} {[%emt 00:01:36]}
O-O {[%clk 01:32:19]} {[%emt 00:00:09]} 6. Be2 {[%clk 01:29:30]} {[%emt
00:00:07]} e5 {[%clk 01:32:43]} {[%emt 00:00:07]} 7. O-O {[%clk 01:28:49]}
{[%emt 00:01:10]} Nc6 {[%clk 01:33:08]} {[%emt 00:00:05]} 8. dxe5 {[%clk
01:28:39]} {[%emt 00:00:40]} dxe5 {[%clk 01:33:31]} {[%emt 00:00:07]} 9. Bg5
{[%clk 01:28:13]} {[%emt 00:00:55]} Nd4 {[%clk 01:29:37]} {[%emt 00:04:25]} 10.
Nxd4 {[%clk 01:26:21]} {[%emt 00:02:21]} exd4 {[%clk 01:28:43]} {[%emt
00:01:26]} 11. Nd5 {[%clk 01:26:25]} {[%emt 00:00:25]} Re8 {[%clk 01:26:45]}
{[%emt 00:02:30]} 12. Qxd4 {[%clk 01:12:20]} {[%emt 00:14:34]} Nxd5 {[%clk
01:27:06]} {[%emt 00:00:08]} 13. Qxd5 {[%clk 01:12:41]} {[%emt 00:00:09]} Qxd5
{[%clk 01:27:21]} {[%emt 00:00:15]} 14. cxd5 {[%clk 01:13:00]} {[%emt
00:00:11]} Rxe4 {[%clk 01:27:48]} {[%emt 00:00:03]} 15. Bf3 {[%clk 01:12:40]}
{[%emt 00:00:51]} Rc4 {[%clk 01:28:16]} {[%emt 00:00:02]} 16. b3 {[%clk
01:02:43]} {[%emt 00:10:26]} Bxa1 {[%clk 01:28:39]} {[%emt 00:00:07]} 17. bxc4
{[%clk 01:02:55]} {[%emt 00:00:18]} Be5 {[%clk 01:28:48]} {[%emt 00:00:21]} 18.
Re1 {[%clk 00:46:09]} {[%emt 00:17:17]} f6 {[%clk 01:24:09]} {[%emt 00:05:09]}
19. Be3 {[%clk 00:45:49]} {[%emt 00:00:49]} Kg7 {[%clk 01:03:23]} {[%emt
00:21:16]} 20. Be2 {[%clk 00:42:33]} {[%emt 00:03:46]} b6 {[%clk 00:55:23]}
{[%emt 00:08:31]} 21. f4 {[%clk 00:40:14]} {[%emt 00:02:48]} Bd6 {[%clk
00:54:29]} {[%emt 00:01:24]} 22. Kf2 {[%clk 00:40:02]} {[%emt 00:00:42]} Bf5
{[%clk 00:45:11]} {[%emt 00:09:49]} 23. g3 {[%clk 00:35:25]} {[%emt 00:05:07]}
a5 {[%clk 00:39:51]} {[%emt 00:05:50]} 24. g4 {[%clk 00:29:09]} {[%emt
00:06:46]} Bd7 {[%clk 00:36:39]} {[%emt 00:03:42]} 25. Kf3 {[%clk 00:27:43]}
{[%emt 00:01:57]} a4 {[%clk 00:28:10]} {[%emt 00:08:59]} 26. Bd4 {[%clk
00:25:21]} {[%emt 00:02:51]} Kf7 {[%clk 00:28:02]} {[%emt 00:00:38]} 27. Bd3
{[%clk 00:20:27]} {[%emt 00:05:24]} a3 {[%clk 00:24:22]} {[%emt 00:04:11]} 28.
Bc2 {[%clk 00:15:11]} {[%emt 00:05:46]} h5 {[%clk 00:16:15]} {[%emt 00:08:37]}
29. gxh5 {[%clk 00:06:49]} {[%emt 00:08:53]} gxh5 {[%clk 00:16:43]} {[%emt
00:00:01]} 30. f5 {[%clk 00:06:45]} {[%emt 00:00:34]} Rg8 {[%clk 00:14:09]}
{[%emt 00:03:04]} 31. Rg1 {[%clk 00:06:16]} {[%emt 00:00:59]} Rxg1 {[%clk
00:06:31]} {[%emt 00:08:09]} 32. Bxg1 {[%clk 00:06:44]} {[%emt 00:00:02]} Bc5
{[%clk 00:06:55]} {[%emt 00:00:06]} 33. Be3 {[%clk 00:06:30]} {[%emt 00:00:44]}
Bxe3 {[%clk 00:06:36]} {[%emt 00:00:50]} 34. Kxe3 {[%clk 00:06:54]} {[%emt
00:00:06]} Ke7 {[%clk 00:05:48]} {[%emt 00:01:18]} 35. h4 {[%clk 00:05:13]}
{[%emt 00:02:10]} Kd6 {[%clk 00:06:03]} {[%emt 00:00:15]} 36. Kd4 {[%clk
00:05:24]} {[%emt 00:00:19]} Bc8 {[%clk 00:00:52]} {[%emt 00:05:39]} 37. Bd3
{[%clk 00:02:45]} {[%emt 00:03:11]} Bd7 {[%clk 00:01:16]} {[%emt 00:00:07]} 38.
Bc2 {[%clk 00:03:11]} {[%emt 00:00:04]} Bc8 {[%clk 00:01:05]} {[%emt 00:00:40]}
39. Bd3 {[%clk 00:03:35]} {[%emt 00:00:06]} c6 {[%clk 00:00:53]} {[%emt
00:00:42]} 40. dxc6 {[%clk 00:03:17]} {[%emt 00:00:48]} Kxc6 {[%clk 00:01:20]}
{[%emt 00:00:02]} 41. Kc3 {[%clk 00:01:33]} {[%emt 00:02:14]} Kc5 {[%clk
00:01:11]} {[%emt 00:00:39]} 42. Be2 {[%clk 00:01:53]} {[%emt 00:00:11]} Bxf5
{[%clk 00:00:49]} {[%emt 00:00:52]} 43. Bxh5 {[%clk 00:01:56]} {[%emt
00:00:27]} Bb1 {[%clk 00:00:49]} {[%emt 00:00:27]} 44. Bf7 {[%clk 00:01:48]}
{[%emt 00:00:39]} Bxa2 {[%clk 00:00:48]} {[%emt 00:00:32]} 45. h5 {[%clk
00:01:41]} {[%emt 00:00:37]} b5 {[%clk 00:00:52]} {[%emt 00:00:26]} 46. Kc2
{[%clk 00:00:31]} {[%emt 00:01:40]} b4 {[%clk 00:01:20]} {[%emt 00:00:02]} 47.
h6 {[%clk 00:00:33]} {[%emt 00:00:28]} b3+ {[%clk 00:01:48]} {[%emt 00:00:02]}
48. Kc3 {[%clk 00:00:54]} {[%emt 00:00:09]} b2 {[%clk 00:02:10]} {[%emt
00:00:08]} 49. h7 {[%clk 00:00:38]} {[%emt 00:00:46]} b1=Q {[%clk 00:02:18]}
{[%emt 00:00:22]} 50. h8=Q {[%clk 00:01:04]} {[%emt 00:00:04]} Qe1+ {[%clk
00:01:18]} {[%emt 00:01:29]} 51. Kd3 {[%clk 00:00:52]} {[%emt 00:00:42]} Bb1#
{[%clk 00:01:41]} {[%emt 00:00:06]} 0-1